fUSD/lending_fUSD_20260115
["ID","MTS","AMOUNT","RATE_DAILY","PERIOD"]
[402062021,1768502921453,-224.95,0.00017262,2]
[402062023,1768502930728,-298.54134994,0.00017262,2]
[402062024,1768502932341,-215.14510851,0.00017262,2]
[402062025,1768502935065,-161.62674631,0.00017262,2]
[402062026,1768502937771,-155.04733483,0.00017262,2]
[402062027,1768502939304,-233.31822963,0.00017262,2]
[402062028,1768502941194,300.0,0.00017261,2]
[402062029,1768502941383,-319.52610379,0.00017262,2]
[402062030,1768502942855,-250.0,0.00017262,2]
[402062031,1768502944295,-301.0211071,0.00017262,2]
[402062032,1768502946810,-255.60362038,0.00017262,2]
[402062033,1768502952207,-235.87234156,0.00017262,2]
[402062034,1768502960130,-197.82625132,0.00017262,2]
[402062035,1768502960691,-191.43443687,0.00017262,2]
[402062036,1768502964514,-381.44436797,0.00017262,2]
[402062037,1768502966503,-201.24937539,0.00017262,2]
[402062038,1768502969040,-443.43511023,0.00017262,2]
[402062039,1768502975697,-164.94464984,0.00017262,2]
[402062040,1768502979340,-531.4195476,0.00017262,2]
[402062041,1768502990725,-385.99815781,0.00017262,2]
[402062042,1768502993062,-308.61255311,0.00017262,2]
[402062043,1768503001420,300.0,0.00017261,2]
[402062044,1768503001451,300.0,0.00017261,2]
[402062045,1768503001743,300.0,0.00017261,2]
[402062046,1768503001784,1200.0,0.00017261,2]
[402062047,1768503006020,-186.55709139,0.00017262,2]
[402062048,1768503008627,500.0,0.00016973,2]
[402062049,1768503008719,-151.80254426,0.00017262,2]
[402062050,1768503010224,-211.45476909,0.00017262,2]
[402062051,1768503013264,-256.0,0.00017262,2]
[402062052,1768503015329,-328.80444425,0.00017262,2]
[402062053,1768503017979,178.77656324,0.00017162,2]
[402062054,1768503018446,-173.27926553,0.00017262,2]
[402062055,1768503019743,9321.23343676,0.00017162,2]
[402062056,1768503019774,10000.01,0.00017162,2]
[402062057,1768503019803,10000.01,0.00017162,2]
[402062058,1768503019832,10000.01,0.00017162,2]
[402062059,1768503021584,-236.00883745,0.00017162,2]
[402062060,1768503024303,-313.69994669,0.00017162,2]
[402062061,1768503026887,-208.75968596,0.00017162,2]
[402062062,1768503029655,-269.40144431,0.00017162,2]
[402062063,1768503031130,-686.33339307,0.00017162,2]
[402062078,1768503031888,-4021.63089063,0.00017162,2]
[402062079,1768503031898,-7287.50095838,0.00017162,2]
[402062080,1768503032021,-1950.01492164,0.00017162,2]
[402062081,1768503032034,-6400.0,0.00017162,2]
[402062082,1768503032046,-1787.28848622,0.00017162,2]
[402062084,1768503033335,-501.50275995,0.00017162,2]
[402062085,1768503035391,-154.70347521,0.00017162,2]
[402062087,1768503037996,-422.32459241,0.00017062,2]
[402062088,1768503038007,-1227.72540759,0.00017162,2]
[402062089,1768503038018,-451.7681818,0.00017162,2]
[402062090,1768503038050,-669.40703855,0.00017162,2]
[402062091,1768503038062,-8066.64065449,0.00017162,2]
[402062092,1768503038074,-5157.58803728,0.00017162,2]
[402062093,1768503038087,-923.9374975,0.00017162,2]
[402062094,1768503038098,-3714.77605747,0.00017162,2]
[402062095,1768503038118,-921627.41461706,0.00017162,2]
[402062096,1768503038128,-826.72073447,0.00017262,2]
[402062097,1768503038138,-226.58548729,0.00017262,2]
[402062098,1768503038148,-300.6515313,0.00017299,2]
[402062099,1768503038158,-216.56969934,0.000173,2]
[402062100,1768503038168,-151.0,0.00017499,2]
[402062101,1768503038178,-1000.0,0.00017521,2]
[402062102,1768503038188,-503.12055844,0.00017521,2]
[402062103,1768503038198,-500.0,0.00017561,2]
[402062104,1768503038212,-500.0,0.00017561,2]
[402062105,1768503038222,-214.30030878,0.00017561,2]
[402062106,1768503038232,-500.0,0.00017561,2]
[402062107,1768503038243,-500.0,0.00017561,2]
[402062108,1768503038253,-223.20330314,0.00017561,2]
[402062109,1768503038263,-500.0,0.00017561,2]
[402062110,1768503038273,-500.0,0.00017561,2]
[402062111,1768503038283,-500.0,0.00017561,2]
[402062112,1768503038293,-500.0,0.00017561,2]
[402062113,1768503038302,-500.0,0.00017561,2]
[402062114,1768503038313,-626.97227841,0.00017561,2]
[402062115,1768503038324,-231.68548246,0.00017905,2]
[402062116,1768503038334,-33074.45,0.00017921,2]
[402062117,1768503038344,-392.4687456,0.00017941,2]
[402062118,1768503038355,-321.47728481,0.00017973,2]
[402062119,1768503038365,-500.0,0.00017973,2]
[402062120,1768503038377,-150.0,0.00017973,2]
[402062121,1768503038387,-500.0,0.00017973,2]
[402062122,1768503038398,-500.0,0.00017973,2]
[402062123,1768503038413,-500.0,0.00017973,2]
[402062124,1768503038424,-500.0,0.00017973,2]
[402062125,1768503038435,-266.18203271,0.00017973,2]
[402062126,1768503038445,-500.0,0.00017973,2]
[402062127,1768503038456,-500.0,0.00017973,2]
[402062128,1768503038466,-500.0,0.00017973,2]
[402062129,1768503038477,-500.0,0.00017973,2]
[402062130,1768503038487,-500.0,0.00017973,2]
[402062131,1768503038498,-500.51697869,0.00017973,2]
[402062132,1768503038508,-536.32316389,0.00017973,2]
[402062133,1768503038520,-500.0,0.00017973,2]
[402062134,1768503038531,-500.73390845,0.00017973,2]
[402062135,1768503038542,-500.0,0.00017973,2]
[402062136,1768503038553,-1500.0,0.00018068,2]
[402062137,1768503038564,-151.0,0.00018095,2]
[402062138,1768503038574,-151.0,0.00018095,2]
[402062139,1768503038585,-1442.5,0.00018202,2]
[402062140,1768503038599,-236.03111356,0.00018521,2]
[402062141,1768503038610,-2000.0,0.00018616,2]
[402062142,1768503038621,-900.0,0.0001863,2]
[402062143,1768503038631,-500.0,0.00018754,2]
[402062144,1768503038642,-6570.45629571,0.00018754,2]
[402062145,1768503038652,-1020.9486513,0.00018754,2]
[402062146,1768503038663,-150.0,0.00018754,2]
[402062147,1768503038674,-500.0,0.00018754,2]
[402062148,1768503038684,-500.0,0.00018754,2]
[402062149,1768503038695,-500.0,0.00018754,2]
[402062150,1768503038706,-150.0,0.00018754,2]
[402062151,1768503038717,-500.0,0.00018754,2]
[402062152,1768503038727,-150.0,0.00018754,2]
[402062153,1768503038738,-500.0,0.00018754,2]
[402062154,1768503038749,-150.0,0.00018754,2]
[402062155,1768503038762,-500.0,0.00018754,2]
[402062156,1768503038774,-736.0,0.00018754,2]
[402062157,1768503038785,-500.0,0.00018754,2]
[402062158,1768503038798,-1001.0,0.00018754,2]
[402062159,1768503038811,-500.0,0.00018754,2]
[402062160,1768503038822,-250.68789387,0.00018754,2]
[402062161,1768503038839,-249.31210613,0.00018754,2]
[402062162,1768503038850,-214.49967185,0.00018754,2]
[402062163,1768503038863,-150.0,0.00018754,2]
[402062164,1768503038875,-150.0,0.00018754,2]
[402062165,1768503038885,-999.0,0.00018783,3]
[402062166,1768503038896,-157.93408011,0.00018809,2]
[402062167,1768503038907,-500.0,0.00018809,2]
[402062168,1768503038918,-500.0,0.00018809,2]
[402062169,1768503038930,-500.0,0.00018809,2]
[402062170,1768503038941,-150.0,0.00018809,2]
[402062171,1768503038953,-500.0,0.00018809,2]
[402062172,1768503038964,-150.0,0.00018809,2]
[402062173,1768503038975,-500.0,0.00018809,2]
[402062174,1768503038988,-150.0,0.00018809,2]
[402062175,1768503038999,-500.0,0.00018809,2]
[402062176,1768503039009,-736.0,0.00018809,2]
[402062177,1768503039020,-500.0,0.00018809,2]
[402062178,1768503039031,-1001.0,0.00018809,2]
[402062179,1768503039042,-500.0,0.00018809,2]
[402062180,1768503039052,-500.0,0.00018809,2]
[402062181,1768503039064,-150.0,0.00018809,2]
[402062182,1768503039075,-420.0,0.00018848,2]
[402062183,1768503039086,-500.0,0.00018864,2]
[402062184,1768503039096,-500.0,0.00018864,2]
[402062185,1768503039106,-500.0,0.00018864,2]
[402062186,1768503039117,-150.0,0.00018864,2]
[402062187,1768503039127,-500.0,0.00018864,2]
[402062188,1768503039137,-150.0,0.00018864,2]
[402062189,1768503039147,-500.0,0.00018864,2]
[402062190,1768503039158,-150.0,0.00018864,2]
[402062191,1768503039168,-500.0,0.00018864,2]
[402062192,1768503039179,-736.0,0.00018864,2]
[402062193,1768503039189,-500.0,0.00018864,2]
[402062194,1768503039199,-1001.0,0.00018864,2]
[402062195,1768503039210,-500.0,0.00018864,2]
[402062196,1768503039220,-192.77300544,0.00018864,2]
[402062197,1768503039230,-284.0,0.00018864,2]
[402062198,1768503039240,-500.0,0.00018918,2]
[402062199,1768503039250,-500.0,0.00018918,2]
[402062200,1768503039260,-500.0,0.00018918,2]
[402062201,1768503039270,-166.33719638,0.00018918,2]
[402062202,1768503039280,-500.0,0.00018918,2]
[402062203,1768503039290,-150.0,0.00018918,2]
[402062204,1768503039300,-500.0,0.00018918,2]
[402062205,1768503039310,-212.75413196,0.00018918,2]
[402062206,1768503039321,-500.0,0.00018918,2]
[402062207,1768503039331,-736.0,0.00018918,2]
[402062208,1768503039341,-614.5534927,0.00018918,2]
[402062209,1768503039351,-1001.0,0.00018918,2]
[402062210,1768503039361,-592.93848589,0.00018918,2]
[402062211,1768503039371,-1680.0,0.00018941,2]
[402062212,1768503039381,-500.0,0.00018973,2]
[402062213,1768503039391,-500.0,0.00018973,2]
[402062214,1768503039400,-500.0,0.00018973,2]
[402062215,1768503039411,-500.0,0.00018973,2]
[402062216,1768503039421,-500.0,0.00018973,2]
[402062217,1768503039431,-150.0,0.00018973,2]
[402062218,1768503039440,-500.0,0.00018973,2]
[402062219,1768503039450,-736.0,0.00018973,2]
[402062220,1768503039460,-1001.0,0.00018973,2]
[402062221,1768503039470,-14125.57,0.00018986,2]
[402062222,1768503039480,-300.0,0.00018988,2]
[402062223,1768503039490,-250.0,0.00018988,2]
[402062224,1768503039500,-250.58624125,0.00018988,2]
[402062225,1768503039510,-600.0,0.00018988,2]
[402062226,1768503039520,-195.0,0.00018988,2]
[402062227,1768503039529,-2418.62685396,0.00018988,2]
[402062228,1768503039539,-76224.24993108,0.00019,2]
[402062229,1768503039549,-536.89418062,0.00019028,2]
[402062230,1768503039559,-500.0,0.00019028,2]
[402062231,1768503039568,-500.0,0.00019028,2]
[402062232,1768503039578,-500.0,0.00019028,2]
[402062233,1768503039587,-385.69115399,0.00019028,2]
[402062234,1768503039597,-500.0,0.00019028,2]
[402062235,1768503039607,-162.81993177,0.00019028,2]
[402062236,1768503039616,-500.0,0.00019028,2]
[402062237,1768503039626,-736.0,0.00019028,2]
[402062238,1768503039635,-1001.0,0.00019028,2]
[402062239,1768503039645,-200.18708233,0.00019082,2]
[402062240,1768503039655,-584.7552737,0.00019083,2]
[402062241,1768503039664,-420.87567967,0.00019083,2]
[402062242,1768503039674,-384.98560342,0.00019083,2]
[402062243,1768503039684,-500.0,0.00019083,2]
[402062244,1768503039694,-500.0,0.00019083,2]
[402062245,1768503039704,-736.0,0.00019083,2]
[402062246,1768503039713,-1001.0,0.00019083,2]
[402062247,1768503039723,-500.0,0.00019138,2]
[402062248,1768503039733,-500.0,0.00019138,2]
[402062249,1768503039743,-736.0,0.00019138,2]
[402062250,1768503039753,-1001.0,0.00019138,2]
[402062251,1768503039763,-907.0,0.00019178,2]
[402062252,1768503039777,-405.30573341,0.00019192,2]
[402062253,1768503039787,-500.0,0.00019192,2]
[402062254,1768503039796,-736.0,0.00019192,2]
[402062255,1768503039807,-1001.0,0.00019192,2]
[402062256,1768503039818,-500.0,0.00019247,2]
[402062258,1768503040148,-736.0,0.00019247,2]
[402062259,1768503040239,-1001.0,0.00019247,2]
[402062260,1768503040249,-211.95611934,0.00019302,2]
[402062261,1768503040258,-736.0,0.00019302,2]
[402062262,1768503040267,-1001.0,0.00019302,2]
[402062263,1768503040277,-1000.0,0.00019318,2]
[402062264,1768503040286,-736.0,0.00019357,2]
[402062265,1768503040296,-1001.0,0.00019357,2]
[402062266,1768503040305,-12433.4895069,0.00019384,2]
[402062267,1768503040314,-4977.36572795,0.00019384,2]
[402062268,1768503040323,-736.0,0.00019412,2]
[402062269,1768503040333,-1001.0,0.00019412,2]
[402062270,1768503040342,-736.0,0.00019466,2]
[402062271,1768503040351,-1001.0,0.00019466,2]
[402062272,1768503040360,-736.0,0.00019521,2]
[402062273,1768503040369,-1001.0,0.00019521,2]
[402062274,1768503040378,-736.0,0.00019576,2]
[402062275,1768503040388,-1001.0,0.00019576,2]
[402062276,1768503040397,-166.66,0.00019624,2]
[402062277,1768503040406,-736.0,0.00019631,2]
[402062278,1768503040415,-1001.0,0.00019631,2]
[402062279,1768503040425,-204.16924686,0.00019675,2]
[402062280,1768503040434,-736.0,0.00019686,2]
[402062281,1768503040443,-1001.0,0.00019686,2]
[402062282,1768503040453,-736.0,0.0001974,2]
[402062283,1768503040462,-1001.0,0.0001974,2]
[402062284,1768503040471,-736.0,0.00019795,2]
[402062285,1768503040480,-1001.0,0.00019795,2]
[402062286,1768503040489,-736.0,0.0001985,2]
[402062287,1768503040499,-1001.0,0.0001985,2]
[402062288,1768503040508,-736.0,0.00019905,2]
[402062289,1768503040518,-1001.0,0.00019905,2]
[402062290,1768503040527,-736.0,0.00019959,2]
[402062291,1768503040536,-1001.0,0.00019959,2]
[402062292,1768503040545,-747.28780433,0.00020014,2]
[402062293,1768503040555,-1007.0,0.00020014,2]
[402062294,1768503040564,-4162.86,0.00020025,2]
[402062295,1768503040573,-166.66,0.00020037,2]
[402062296,1768503040582,-1442.5,0.00020383,2]
[402062297,1768503040592,-166.66,0.0002045,2]
[402062298,1768503040601,-587.0,0.00020581,2]
[402062299,1768503040611,-2351.0,0.00020785,2]
[402062300,1768503040620,-647.63,0.00020827,2]
[402062301,1768503040629,-166.66,0.00020863,2]
[402062302,1768503040638,-1158.71,0.00020946,2]
[402062303,1768503040647,-166.66,0.00021276,2]
[402062304,1768503040657,-12433.4895069,0.00021606,2]
[402062305,1768503040665,-158.61718939,0.00021617,2]
[402062306,1768503040675,-166.66,0.00021689,2]
[402062307,1768503040684,-1000.0,0.00021733,2]
[402062308,1768503040693,-153.6561555,0.00021918,2]
[402062309,1768503040702,-620.0,0.00021953,2]
[402062310,1768503040711,-3000.0,0.00021953,2]
[402062311,1768503040720,-3000.0,0.00021953,2]
[402062312,1768503040729,-3000.0,0.00021953,2]
[402062313,1768503040739,-3000.0,0.00021953,2]
[402062314,1768503040748,-3000.0,0.00021953,2]
[402062315,1768503040758,-1000.0,0.00021953,2]
[402062316,1768503040769,-174.61919141,0.00021953,2]
[402062317,1768503040778,-500.0,0.00021953,2]
[402062318,1768503040787,-500.0,0.00021953,2]
[402062319,1768503040797,-500.0,0.00021953,2]
[402062320,1768503040807,-250.0,0.00021953,2]
[402062321,1768503040817,-500.0,0.00021953,2]
[402062322,1768503040826,-500.0,0.00021953,2]
[402062323,1768503040837,-601.3376128,0.00021953,2]
[402062324,1768503040847,-500.0,0.00021953,2]
[402062325,1768503040856,-500.0,0.00021953,2]
[402062326,1768503040865,-558.16555503,0.00021953,2]
[402062327,1768503040875,-500.0,0.00021953,2]
[402062328,1768503040884,-500.0,0.00021953,2]
[402062330,1768503040894,-500.0,0.00021953,2]
[402062331,1768503040903,-500.0,0.00021953,2]
[402062332,1768503040913,-500.0,0.00021953,2]
[402062333,1768503040922,-500.0,0.00021953,2]
[402062334,1768503040931,-500.0,0.00021953,2]
[402062335,1768503040941,-578.20924308,0.00021953,2]
[402062336,1768503040950,-2500.0,0.00021953,2]
[402062337,1768503040959,-2500.0,0.00021953,2]
[402062338,1768503040969,-2500.0,0.00021953,2]
[402062339,1768503040978,-2500.0,0.00021953,2]
[402062340,1768503040987,-449.87796751,0.00021953,2]
[402062341,1768503040996,-713.64,0.00021953,2]
[402062342,1768503041006,-713.64,0.00022227,2]
[402062343,1768503041016,-823.0,0.00022473,2]
[402062344,1768503041025,-181.08010149,0.00022501,2]
[402062345,1768503041035,-713.64,0.00022501,2]
[402062346,1768503041044,-1442.5,0.00022564,2]
[402062347,1768503041054,-713.64,0.00022775,2]
[402062348,1768503041064,-3292.0,0.00022808,2]
[402062349,1768503041074,-250.0,0.00022809,2]
[402062350,1768503041083,-713.64,0.00023048,2]
[402062351,1768503041092,-187.78006525,0.00023049,2]
[402062352,1768503041102,-7294.10200223,0.00023212,2]
[402062353,1768503041111,-620.0,0.00023322,2]
[402062354,1768503041120,-713.69528623,0.00023322,2]
[402062355,1768503041130,-237.0,0.00023338,2]
[402062356,1768503041140,-237.0,0.00023353,2]
[402062357,1768503041149,-1174.96,0.00023368,2]
[402062358,1768503041159,-237.0,0.00023399,2]
[402062359,1768503041168,-237.0,0.0002342,2]
[402062360,1768503041177,-647.63,0.00023431,2]
[402062361,1768503041187,-237.0,0.00023468,2]
[402062362,1768503041196,-237.0,0.00023481,2]
[402062363,1768503041205,-194.72792766,0.00023597,2]
[402062364,1768503041215,-237.0,0.00023725,2]
[402062365,1768503041225,-12433.4895069,0.00023828,2]
[402062366,1768503041235,-237.0,0.00023923,2]
[402062367,1768503041244,-237.0,0.0002404,2]
[402062368,1768503041253,-328.24184213,0.00024145,2]
[402062369,1768503041263,-1000.0,0.00024147,2]
[402062370,1768503041272,-237.0,0.00024152,2]
[402062371,1768503041281,-237.0,0.00024182,2]
[402062372,1768503041291,-1152.0,0.00024539,2]
[402062373,1768503041300,-237.0,0.00024629,2]
[402062374,1768503041310,-237.0,0.0002464,2]
[402062375,1768503041321,-237.0,0.00024737,2]
[402062376,1768503041330,-1442.5,0.00024744,2]
[402062377,1768503041340,-13389.20191525,0.00024766,2]
[402062378,1768503041350,-237.0,0.00024816,2]
[402062379,1768503041360,-237.0,0.00024829,2]
[402062380,1768503041369,-237.0,0.00024869,2]
[402062381,1768503041379,-237.0,0.0002488,2]
[402062382,1768503041389,-28952.802115,0.000249,2]
[402062383,1768503041398,-5159.48,0.0002498,2]
[402062384,1768503041409,-9999.99,0.0002498,2]
[402062385,1768503041418,-348.09,0.0002498,2]
[402062386,1768503041428,-150.99,0.0002498,2]
[402062387,1768503041438,-513.53,0.0002498,2]
[402062388,1768503041448,-1179.61,0.0002498,2]
[402062389,1768503041458,-9999.99,0.0002498,2]
[402062390,1768503041467,-7637.27,0.0002498,2]
[402062391,1768503041477,-3128.71,0.0002498,2]
[402062392,1768503041487,-9999.99,0.0002498,2]
[402062393,1768503041497,-999.99,0.0002498,2]
[402062394,1768503041507,-9999.99,0.0002498,2]
[402062395,1768503041516,-150.99,0.0002498,2]
[402062396,1768503041526,-299.99,0.0002498,7]
[402062397,1768503041535,-5877.25,0.0002498,2]
[402062399,1768503041545,-249.0,0.00025029,2]
[402062402,1768503041555,-237.0,0.00025179,2]
[402062403,1768503041567,-237.0,0.00025213,2]
[402062404,1768503041576,-237.0,0.00025294,2]
[402062405,1768503041585,-237.0,0.00025332,2]
[402062406,1768503041595,-237.0,0.00025409,2]
[402062407,1768503041604,-237.0,0.00025504,2]
[402062408,1768503041614,-237.0,0.00025507,2]
[402062409,1768503041623,-12433.4895069,0.0002605,2]
[402062410,1768503041633,-1000.0,0.00026562,2]
[402062411,1768503041643,-1373.0,0.00026795,2]
[402062412,1768503041653,-178.77656324,0.00026833,2]
[402062413,1768503041664,-1442.5,0.00026925,2]
[402062414,1768503041675,-4326.443909,0.00026933,2]
[402062415,1768503041684,-268558.2539239,0.00026933,2]
[402062416,1768503041696,-1132.6478388,0.00026933,2]
[402062417,1768503041705,-4715.16,0.00026948,2]
[402062418,1768503041715,-373.0,0.000271,3]
[402062419,1768503041726,-506.0,0.00027137,2]
[402062420,1768503041736,-150.0,0.00027369,2]
[402062421,1768503041746,-1101.0,0.00027628,5]
[402062422,1768503041756,-5533.0,0.000278,5]
[402062423,1768503041768,-12433.4895069,0.00028272,2]
[402062424,1768503041780,-1000.0,0.00028977,2]
[402062425,1768503041790,-1442.5,0.00029106,2]
[402062426,1768503041800,-10372.91804244,0.00029866,2]
[402062427,1768503041811,-7589.74051846,0.00029866,2]
[402062428,1768503041821,-207.4,0.00030066,2]
[402062429,1768503041831,-2769.309799,0.00030137,15]
[402062430,1768503041841,-5073.55878882,0.00030166,14]
[402062431,1768503041850,-4326.443909,0.00030307,2]
[402062432,1768503041859,-59923.4462072,0.00030344,2]
[402062433,1768503041869,-2847.2103,0.00030466,14]
[402062434,1768503041878,-12433.4895069,0.00030494,2]
[402062435,1768503041888,-13370.7281488,0.00031105,2]
[402062436,1768503041898,-647.63,0.00031241,120]
[402062437,1768503041908,-500.0,0.00031269,2]
[402062438,1768503041918,-1442.5,0.00031287,2]
[402062439,1768503041927,-12433.4895069,0.00032716,2]
[402062440,1768503041937,-162.380719,0.00032877,2]
[402062441,1768503041947,-150.0,0.00032877,2]
[402062442,1768503041956,-500.0,0.00032877,2]
[402062443,1768503041966,-166.57,0.000329,14]
[402062444,1768503041975,-150.0,0.00032932,2]
[402062445,1768503041984,-500.0,0.00032932,2]
[402062446,1768503041994,-282.21849629,0.00032987,2]
[402062447,1768503042003,-232.0434754,0.00032987,2]
[402062448,1768503042013,-506.0,0.00033011,8]
[402062449,1768503042023,-1442.5,0.00033468,5]
[402062450,1768503042033,-4326.443909,0.0003368,2]
[402062451,1768503042042,-150.0,0.00034575,2]
[402062452,1768503042051,-150.0,0.00034575,2]
[402062453,1768503042061,-2141.56061094,0.000349,120]
[402062454,1768503042072,-12433.4895069,0.00034938,2]
[402062455,1768503042082,-150.0,0.00035091,2]
[402062456,1768503042092,-500.0,0.00035341,2]
[402062457,1768503042102,-500.0,0.00035341,2]
[402062458,1768503042111,-500.0,0.00035341,2]
[402062459,1768503042120,-150.0,0.00035341,2]
[402062460,1768503042130,-500.0,0.00035341,2]
[402062461,1768503042139,-500.0,0.00035341,2]
[402062462,1768503042149,-500.0,0.00035341,2]
[402062463,1768503042158,-150.0,0.00035341,2]
[402062464,1768503042167,-500.0,0.00035341,2]
[402062465,1768503042177,-150.0,0.00035341,2]
[402062466,1768503042186,-500.0,0.00035341,2]
[402062467,1768503042195,-500.0,0.00035396,2]
[402062468,1768503042206,-500.0,0.00035396,2]
[402062469,1768503042215,-500.0,0.00035396,2]
[402062470,1768503042225,-150.0,0.00035396,2]
[402062471,1768503042234,-500.0,0.00035396,2]
[402062472,1768503042244,-500.0,0.00035396,2]
[402062473,1768503042254,-500.0,0.00035396,2]
[402062474,1768503042264,-150.77075567,0.00035396,2]
[402062475,1768503042274,-500.0,0.00035396,2]
[402062476,1768503042283,-155.570239,0.00035396,2]
[402062477,1768503042293,-500.0,0.00035396,2]
[402062478,1768503042302,-500.0,0.00035451,2]
[402062479,1768503042312,-311.3485535,0.00035451,2]
[402062480,1768503042322,-500.0,0.00035451,2]
[402062481,1768503042332,-209.71778513,0.00035451,2]
[402062482,1768503042341,-500.0,0.00035451,2]
[402062483,1768503042350,-500.0,0.00035451,2]
[402062484,1768503042359,-325.70575154,0.00035451,2]
[402062485,1768503042368,-384.15160057,0.00035451,2]
[402062486,1768503042378,-500.0,0.00035451,2]
[402062487,1768503042387,-500.0,0.00035505,2]
[402062488,1768503042397,-500.0,0.00035505,2]
[402062489,1768503042406,-500.0,0.00035505,2]
[402062490,1768503042416,-500.0,0.00035505,2]
[402062491,1768503042425,-500.0,0.00035505,2]
[402062492,1768503042435,-173.12624248,0.00035516,2]
[402062493,1768503042445,-292.5367075,0.00035516,2]
[402062494,1768503042454,-500.0,0.0003556,2]
[402062495,1768503042463,-500.0,0.0003556,2]
[402062497,1768503042473,-500.0,0.0003556,2]
[402062499,1768503042483,-500.0,0.0003556,2]
[402062500,1768503042492,-647.52238953,0.0003556,2]
[402062501,1768503042502,-6556.0,0.00035586,2]
[402062502,1768503042511,-2438.0,0.00035586,2]
[402062503,1768503042520,-24303.0,0.00035589,2]
[402062504,1768503042530,-150.0,0.00035615,2]
[402062505,1768503042539,-303.91669423,0.00035615,2]
[402062506,1768503042549,-211.14422192,0.00035615,2]
[402062507,1768503042558,-500.0,0.00035615,2]
[402062508,1768503042568,-589.33252774,0.00035615,2]
[402062509,1768503042578,-400.0,0.00035616,10]
[402062510,1768503042588,-500.0,0.00035616,10]
[402062511,1768503042597,-500.0,0.00035616,10]
[402062512,1768503042681,-500.0,0.00035616,10]
[402062514,1768503042691,-500.0,0.00035616,10]
[402062515,1768503042700,-500.0,0.00035616,10]
[402062516,1768503042711,-500.0,0.00035616,10]
[402062517,1768503042720,-500.0,0.00035616,10]
[402062518,1768503042730,-500.0,0.00035616,10]
[402062519,1768503042740,-500.0,0.00035616,10]
[402062520,1768503042750,-215.0,0.00035616,10]
[402062521,1768503042762,-178.71622848,0.00035616,10]
[402062522,1768503042772,-500.0,0.00035616,10]
[402062523,1768503042782,-500.0,0.00035616,10]
[402062524,1768503042791,-505.03,0.00035616,10]
[402062525,1768503042802,-500.0,0.00035616,10]
[402062526,1768503042812,-500.0,0.00035616,10]
[402062527,1768503042823,-500.0,0.00035616,10]
[402062528,1768503042834,-500.0,0.00035616,10]
[402062529,1768503042844,-500.0,0.00035616,10]
[402062531,1768503042854,-521.71580588,0.00035616,10]
[402062533,1768503042864,-500.0,0.00035616,10]
[402062534,1768503042875,-500.0,0.00035616,10]
[402062535,1768503042884,-500.0,0.00035616,10]
[402062536,1768503042894,-520.27152931,0.00035616,10]
[402062538,1768503042904,-500.0,0.00035616,10]
[402062540,1768503042913,-500.0,0.00035616,10]
[402062541,1768503042922,-500.0,0.00035616,10]
[402062542,1768503042932,-500.0,0.00035616,10]
[402062543,1768503042942,-500.0,0.00035616,10]
[402062544,1768503042951,-500.0,0.00035616,10]
[402062545,1768503042961,-500.0,0.00035616,10]
[402062546,1768503042971,-500.0,0.00035616,10]
[402062548,1768503042980,-547.77833206,0.00035616,10]
[402062549,1768503042989,-500.0,0.00035616,10]
[402062550,1768503042998,-500.0,0.00035616,10]